fUST/lending_fUST_20251004
["ID","MTS","AMOUNT","RATE_DAILY","PERIOD"]
[388930134,1759512640928,-489.73824017,0.00024201,2]
[388930135,1759512640937,-999.98980169,0.000244,10]
[388930136,1759512640947,-179.05035782,0.00024411,2]
[388930137,1759512640956,-489.73824017,0.00024492,6]
[388930138,1759512640966,-489.73824017,0.00024784,10]
[388930139,1759512640975,-999.999999,0.00025,2]
[388930140,1759512640984,-2208.9634614,0.00025636,2]
[388930141,1759512640994,-4706.0675386,0.00025636,2]
[388930142,1759512641007,-720.0,0.00025805,20]
[388930143,1759512641018,-174.5141881,0.00025999,2]
[388930144,1759512641027,-1523.15792939,0.00026,10]
[388930145,1759512641036,-2439.83249415,0.00026364,2]
[388930146,1759512641047,-200.0,0.0002654,14]
[388930147,1759512641057,-189.29,0.000279,2]
[388930148,1759512641067,-864.0,0.00028385,30]
[388930149,1759512641080,-4087.5649808,0.000285,7]
[388930150,1759512641089,-590.673441,0.00029128,2]
[388930151,1759512641099,-500.0,0.0002943,11]
[388930152,1759512641108,-351.14871673,0.0002943,11]
[388930153,1759512641117,-177.01977004,0.000295,120]
[388930154,1759512641127,-168.0,0.00029766,2]
[388930155,1759512641137,-179.05035782,0.00029775,2]
[388930156,1759512641147,-7234.17779289,0.00029786,2]
[388930157,1759512641157,-5489.62311184,0.00029827,2]
[388930158,1759512641166,-273.429,0.00029865,24]
[388930159,1759512641175,-3254.01,0.00029866,10]
[388930160,1759512641184,-2401.49,0.00029875,2]
[388930161,1759512641194,-269.11762937,0.00029875,2]
[388930162,1759512641203,-486.66,0.00029876,3]
[388930163,1759512641212,-243.33,0.00029876,3]
[388930164,1759512641222,-243.33,0.00029876,3]
[388930165,1759512641231,-25401.07025067,0.00029876,2]
[388930166,1759512641463,-3811.34174692,0.00029876,2]
[388930185,1759512643840,-34814.327424,0.00029876,2]
[388930186,1759512643854,-1313.02703024,0.00029876,2]
[388930294,1759512862336,160.0,0.00013699,2]
[388930295,1759512862669,300.0,0.00014247,2]
[388930305,1759513392576,167.2435744,9.969e-05,2]
[388930435,1759513636675,10869.998045,0.00028,120]
[388930470,1759513831833,-5000.0,0.00018611,2]
[388930472,1759513831844,-1694.19293543,0.00018799,2]
[388930476,1759513831885,-2103.12706074,0.00018799,2]
[388930478,1759513831897,-847.999995,0.00018799,2]
[388930479,1759513831907,-354.68000883,0.00018799,2]
[388930480,1759513831917,-487.13966154,0.00018989,2]
[388930483,1759513831928,-4512.86033846,0.00018989,2]
[388930485,1759513831938,-300.0,0.00019274,2]
[388930487,1759513831947,-2854.47012731,0.00019275,2]
[388930488,1759513831956,-6930.81155893,0.00019633,2]
[388930490,1759513831968,-18381.95253155,0.00019633,2]
[388930492,1759513831979,-1973.9124912,0.00019633,2]
[388930547,1759513837748,-1709.93850827,0.00019633,2]
[388930548,1759513837759,-851.31908824,0.00019633,2]
[388930549,1759513837770,-344.27777,0.00019633,2]
[388930550,1759513837796,-1146.24030865,0.00019633,2]
[388930551,1759513837807,-985.1897567,0.00019633,2]
[388930552,1759513837817,-1430.69635413,0.00019633,2]
[388930605,1759513842968,-5000.0,0.00019437,2]
[388930606,1759513842979,-9541.74481763,0.00019633,2]
[388930607,1759513842988,-500.0,0.00020973,2]
[388930608,1759513842998,-2711.67,0.0002099,10]
[388930609,1759513843008,-2259.73,0.0002099,10]
[388930610,1759513843018,-186.1412883,0.00020999,2]
[388930611,1759513843028,-188.38234056,0.00020999,2]
[388930612,1759513843038,-109063.64223088,0.00021,4]
[388930613,1759513843049,-3201.40696142,0.00021,4]
[388930614,1759513843059,-287.0,0.00021003,2]
[388930615,1759513843068,-1000.0,0.00021521,2]
[388930616,1759513843077,-666.0,0.00021583,2]
[388930617,1759513843087,-293.47406221,0.00021961,2]
[388930618,1759513843098,-1893.55,0.00022,2]
[388930619,1759513843108,-1500.0,0.00022068,2]
[388930620,1759513843117,-234.04758945,0.00022305,2]
[388930621,1759513843127,-190.119556,0.00022441,2]
[388930622,1759513843137,-358.44767554,0.00022711,2]
[388930641,1759513846231,-1883.11,0.0002099,10]
[388930642,1759513846241,-9649.63214826,0.00022711,2]
[388930643,1759513846251,-486.69,0.0002299,3]
[388930644,1759513846261,-5000.0,0.00023,3]
[388930645,1759513846270,-261.4180905,0.00023395,2]
[388930646,1759513846279,-324.44,0.00023449,3]
[388930647,1759513846288,-162.22,0.00023449,3]
[388930648,1759513846297,-300.0,0.00023459,20]
[388930649,1759513846306,-300.0,0.00023459,20]
[388930650,1759513846319,-300.0,0.00023459,20]
[388930651,1759513846329,-300.0,0.00023459,20]
[388930652,1759513846338,-300.0,0.00023459,20]
[388930653,1759513846348,-300.0,0.00023459,20]
[388930654,1759513846358,-300.0,0.00023459,20]
[388930655,1759513846368,-300.0,0.00023459,20]
[388930656,1759513846377,-300.0,0.00023459,20]
[388930657,1759513846387,-300.0,0.00023459,20]
[388930658,1759513846398,-300.0,0.00023459,20]
[388930659,1759513846407,-300.0,0.00023459,20]
[388930660,1759513846417,-300.0,0.00023459,20]
[388930661,1759513846426,-300.0,0.00023459,20]
[388930662,1759513846436,-300.0,0.00023459,20]
[388930663,1759513846445,-160.0,0.00023832,2]
[388930664,1759513846455,-4292.20836313,0.00023908,6]
[388930665,1759513846467,-586.36369892,0.00023908,6]
[388930666,1759513846478,-121.42793795,0.00023908,6]
[388930667,1759513846488,-1041.66666667,0.00023966,2]
[388930668,1759513846497,-489.73824017,0.00024201,2]
[388930669,1759513846506,-489.73824017,0.00024201,2]
[388930670,1759513846516,-500.0,0.0002424,2]
[388930671,1759513846526,-489.73824017,0.00024347,4]
[388930672,1759513846536,-489.73824017,0.00024347,4]
[388930673,1759513846545,-489.73824017,0.00024492,6]
[388930674,1759513846555,-489.73824017,0.00024492,6]
[388930675,1759513846564,-489.73824017,0.00024638,8]
[388930676,1759513846573,-489.73824017,0.00024638,8]
[388930677,1759513846582,-489.73824017,0.00024638,8]
[388930678,1759513846592,-2301.43,0.00024657,2]
[388930679,1759513846604,-380.0,0.00024658,2]
[388930680,1759513846614,-489.73824017,0.00024784,10]
[388930681,1759513846623,-489.73824017,0.00024784,10]
[388930682,1759513846632,-1000.0,0.00024788,2]
[388930683,1759513846641,-648.88,0.00024819,3]
[388930684,1759513846651,-324.44,0.00024819,3]
[388930685,1759513846660,-600.0,0.00024833,20]
[388930686,1759513846669,-500.0,0.00024873,2]
[388930687,1759513846679,-23705.22034207,0.000249,2]
[388931022,1759515035232,-286.81356417,0.0001839,2]
[388931023,1759515035286,-908.95456817,0.0001839,2]
[388931036,1759515038007,-455.27,0.0001839,2]
[388931037,1759515038018,-670.87093617,0.0001839,2]
[388931038,1759515038029,-1855.94115,0.0001839,2]
[388931039,1759515038041,-365.53219566,0.0001839,2]
[388931040,1759515038051,-1536.93871216,0.00018576,2]
[388931041,1759515038063,-3463.06128784,0.00018576,2]
[388931042,1759515038075,-5000.0,0.00018764,2]
[388931043,1759515038085,-300.0,0.00019144,2]
[388931044,1759515038096,-234.04758945,0.00022033,2]
[388931045,1759515038107,-160.0,0.00022033,2]
[388931046,1759515038118,-293.47406221,0.00022033,2]
[388931047,1759515038128,-526.523751,0.00022406,2]
[388931048,1759515038138,-470.4785383,0.00022572,2]
[388931049,1759515038148,-1000.0,0.00022757,2]
[388931050,1759515038158,-300.0,0.00022933,20]
[388931051,1759515038168,-300.0,0.00022933,20]
[388931052,1759515038178,-300.0,0.00022933,20]
[388931053,1759515038373,-300.0,0.00022933,20]
[388931054,1759515038383,-300.0,0.00022933,20]
[388931055,1759515038393,-300.0,0.00022933,20]
[388931056,1759515038403,-300.0,0.00022933,20]
[388931057,1759515038413,-300.0,0.00022933,20]
[388931058,1759515038422,-300.0,0.00022933,20]
[388931059,1759515038430,-300.0,0.00022933,20]
[388931060,1759515038439,-300.0,0.00022933,20]
[388931061,1759515038449,-300.0,0.00022933,20]
[388931062,1759515038458,-300.0,0.00022933,20]
[388931063,1759515038468,-300.0,0.00022933,20]
[388931064,1759515038477,-300.0,0.00022933,20]
[388931065,1759515038486,-1041.66666667,0.00023,2]
[388931066,1759515038496,-160.0,0.00023,2]
[388931067,1759515038504,-281.18554396,0.00023287,2]
[388931068,1759515038512,-600.0,0.00023391,20]
[388931069,1759515038522,-874.958874,0.00024005,2]
[388931070,1759515038532,-1143.8382204,0.00024005,2]
[388931071,1759515038542,-2466.3827515,0.00024005,2]
[388931072,1759515038553,-1435.46496311,0.00024573,2]
[388931073,1759515038563,-101.38839821,0.000248,2]
[388931079,1759515040059,-48.61160179,0.000248,2]
[388931080,1759515040072,-300.0,0.000249,2]
[388931081,1759515040083,-300.0,0.000249,2]
[388931082,1759515040092,-300.0,0.000249,2]
[388931083,1759515040102,-1704.19,0.000249,2]
[388931084,1759515040111,-29.90593899,0.00025,3]
[388931147,1759515044098,-2481.56518905,0.00025,3]
[388931148,1759515044107,-27518.13214836,0.00025447,2]
[388931149,1759515044119,-747.12916699,0.00025447,2]
[388931163,1759515046189,-642.19313161,0.0002475,2]
[388931164,1759515046200,-4054.39325301,0.0002475,2]
[388931197,1759515440372,531.606099,0.00016438,2]
[388931269,1759516067939,90000.09,0.00018,2]
[388931273,1759516091466,419.66380354,0.00010618,2]
[388931274,1759516093416,11507.17649776,0.000125,2]
[388931275,1759516095352,6946.0,0.00018,2]
[388931277,1759516106500,285.78558611,0.0001,2]
[388931278,1759516111198,72849.41216457,0.00017,2]
[388931280,1759516122133,5316.97782385,0.00018,2]
[388931333,1759516232248,-2035.00000762,0.00018989,2]
[388931334,1759516232303,-2964.99999238,0.00018989,2]
[388931335,1759516232314,-5000.0,0.00019181,2]
[388931336,1759516232324,-179.05035782,0.00019797,2]
[388931337,1759516232333,-404.2877432,0.000198,2]
[388931338,1759516232343,-174.5141881,0.00019896,2]
[388931339,1759516232352,-7180.09962367,0.00019897,2]
[388931340,1759516232365,-23077.03695443,0.00019897,2]
[388931341,1759516232375,-190.119556,0.00020222,2]
[388931342,1759516232383,-2111.59,0.0002099,10]
[388931343,1759516232393,-1759.66,0.0002099,10]
[388931344,1759516232403,-212.6029272,0.00020999,2]
[388931345,1759516232413,-130062.53943413,0.00021,4]
[388931346,1759516232423,-1446.83555861,0.000219,2]
[388931348,1759516232432,-1533.78,0.00022,2]
[388931350,1759516232441,-293.47406221,0.00022024,2]
[388931351,1759516232451,-162.22,0.00022429,3]
[388931352,1759516232461,-486.66,0.00022429,3]
[388931353,1759516232470,-300.0,0.00022439,20]
[388931355,1759516232480,-300.0,0.00022439,20]
[388931357,1759516232490,-300.0,0.00022439,20]
[388931359,1759516232499,-300.0,0.00022439,20]
[388931361,1759516232509,-300.0,0.00022439,20]
[388931362,1759516232519,-300.0,0.00022439,20]
[388931364,1759516232528,-300.0,0.00022439,20]
[388931366,1759516232537,-300.0,0.00022439,20]
[388931367,1759516232547,-300.0,0.00022439,20]
[388931369,1759516232556,-300.0,0.00022439,20]
[388931371,1759516232565,-300.0,0.00022439,20]
[388931372,1759516232575,-300.0,0.00022439,20]
[388931373,1759516232585,-300.0,0.00022439,20]
[388931375,1759516232595,-300.0,0.00022439,20]
[388931376,1759516232605,-300.0,0.00022439,20]
[388931377,1759516232614,-600.0,0.00022439,20]
[388931378,1759516232624,-1018.65781571,0.000225,2]
[388931379,1759516232634,-234.04758945,0.00022548,2]
[388931381,1759516232644,-1446.83555857,0.00022625,2]
[388931383,1759516232653,-531.606099,0.00022783,2]
[388931385,1759516232662,-5314.65663928,0.00023,2]
[388931387,1759516232671,-1446.83555857,0.0002335,2]
[388931389,1759516232680,-324.44,0.00023799,3]
[388931391,1759516232690,-1446.83555857,0.00024075,2]
[388931393,1759516232699,-2167.42559482,0.00024347,4]
[388931395,1759516232709,-2305.6,0.00024657,2]
[388931397,1759516232718,-151.0,0.00024657,7]
[388931399,1759516232727,-151.0,0.00024657,7]
[388931401,1759516232736,-151.0,0.00024657,7]
[388931403,1759516232746,-151.0,0.00024657,7]
[388931405,1759516232755,-151.0,0.00024657,7]
[388931407,1759516232764,-151.0,0.00024657,7]
[388931409,1759516232773,-151.0,0.00024657,7]
[388931411,1759516232782,-151.0,0.00024657,7]
[388931413,1759516232791,-720.0,0.00024683,20]
[388931415,1759516232800,-36357.27278804,0.0002469,2]
[388931417,1759516232810,-151.0,0.0002469,7]
[388931419,1759516232819,-151.0,0.0002469,7]
[388931421,1759516232828,-170.589913,0.0002469,7]
[388931423,1759516232838,-151.0,0.0002469,7]
[388931425,1759516232847,-151.0,0.0002469,7]
[388931427,1759516232856,-151.0,0.0002469,7]
[388931429,1759516232865,-151.0,0.0002469,7]
[388931431,1759516232875,-151.0,0.0002469,7]
[388931433,1759516232884,-151.0,0.0002469,7]
[388931435,1759516232893,-237.30692,0.0002469,7]
[388931437,1759516232903,-151.0,0.0002469,7]
[388931438,1759516232913,-151.0,0.0002469,7]
[388931440,1759516232924,-151.0,0.0002469,7]
[388931442,1759516232935,-151.0,0.0002469,7]
[388931445,1759516232949,-757.181541,0.0002469,7]
[388931447,1759516232958,-151.0,0.0002469,7]
[388931449,1759516232967,-242.213988,0.0002469,7]
[388931451,1759516232977,-151.0,0.0002469,7]
[388931453,1759516232988,-151.0,0.0002469,7]
[388931454,1759516232998,-151.0,0.0002469,7]
[388931456,1759516233009,-151.0,0.0002469,7]
[388931459,1759516233020,-151.0,0.0002469,7]
[388931461,1759516233030,-151.0,0.0002469,7]
[388931463,1759516233039,-151.0,0.0002469,7]
[388931465,1759516233048,-151.0,0.0002469,7]
[388931467,1759516233058,-151.0,0.0002469,7]
[388931468,1759516233067,-151.0,0.0002469,7]
[388931471,1759516233077,-151.0,0.0002469,7]
[388931472,1759516233086,-151.0,0.0002469,7]
[388931475,1759516233096,-151.0,0.0002469,7]
[388931476,1759516233106,-151.0,0.0002469,7]
[388931479,1759516233115,-151.0,0.0002469,7]
[388931480,1759516233125,-151.0,0.0002469,7]
[388931482,1759516233134,-160.0,0.00024779,2]
[388931484,1759516233144,-190.119556,0.00024788,2]
[388931487,1759516233154,-1446.83555857,0.000248,2]
[388931488,1759516233163,-1041.66666667,0.00024826,2]
[388931490,1759516233172,-500.0,0.00024873,2]
[388931492,1759516233181,-500.0,0.00024873,2]
[388931494,1759516233190,-500.0,0.00024873,2]
[388931496,1759516233200,-500.0,0.00024873,2]
[388931498,1759516233209,-500.0,0.00024873,2]
[388931500,1759516233219,-500.0,0.00024873,2]
[388931502,1759516233228,-500.0,0.00024873,2]
[388931504,1759516233237,-500.0,0.00024873,2]
[388931506,1759516233246,-500.0,0.00024873,2]
[388931508,1759516233255,-500.0,0.00024873,2]
[388931510,1759516233266,-500.0,0.00024873,2]
[388931512,1759516233275,-500.0,0.00024873,2]
[388931514,1759516233284,-262.15546015,0.00024873,2]
[388931516,1759516233293,-500.0,0.00024873,2]
[388931517,1759516233303,-500.0,0.00024873,2]
[388931518,1759516233312,-500.0,0.00024873,2]
[388931519,1759516233322,-501.97120374,0.00024873,2]
[388931520,1759516233331,-151.0,0.00024873,2]
[388931521,1759516233341,-151.0,0.00024873,2]
[388931522,1759516233350,-151.0,0.00024873,2]
[388931523,1759516233361,-300.0,0.000249,2]
[388931524,1759516233370,-151.0,0.000249,7]
[388931525,1759516233380,-151.0,0.000249,7]
[388931526,1759516233389,-151.0,0.000249,7]
[388931527,1759516233399,-151.0,0.000249,7]
[388931528,1759516233409,-151.0,0.000249,7]
[388931529,1759516233418,-151.0,0.000249,7]
[388931530,1759516233428,-151.0,0.000249,7]
[388931531,1759516233437,-151.0,0.000249,7]
[388931532,1759516233447,-151.0,0.000249,7]
[388931533,1759516233457,-151.0,0.000249,7]
[388931534,1759516233466,-151.0,0.000249,7]
[388931535,1759516233475,-151.0,0.000249,7]
[388931536,1759516233485,-1153.06830653,0.000249,2]
[388931537,1759516233495,-151.0,0.000249,7]
[388931538,1759516233505,-187.276307,0.000249,7]
[388931539,1759516233515,-151.0,0.000249,7]
[388931540,1759516233525,-151.0,0.000249,7]
[388931541,1759516233535,-151.0,0.000249,7]
[388931543,1759516233544,-151.0,0.000249,7]
[388931544,1759516233554,-151.0,0.000249,7]
[388931545,1759516233563,-151.0,0.000249,7]
[388931547,1759516233573,-151.0,0.000249,7]
[388931549,1759516233582,-151.0,0.000249,7]
[388931551,1759516233591,-151.0,0.000249,7]
[388931553,1759516233600,-151.0,0.000249,7]
[388931555,1759516233612,-151.0,0.000249,7]
[388931557,1759516233621,-151.0,0.000249,7]
[388931559,1759516233631,-151.0,0.000249,7]
[388931561,1759516233640,-151.0,0.000249,7]
[388931563,1759516233649,-151.0,0.000249,7]
[388931564,1759516233658,-151.0,0.000249,7]
[388931567,1759516233667,-262.481212,0.000249,7]
[388931569,1759516233677,-757.181541,0.000249,7]
[388931571,1759516233687,-151.0,0.000249,7]
[388931573,1759516233696,-1041.66666667,0.000249,7]
[388931575,1759516233705,-151.0,0.000249,7]
[388931577,1759516233714,-69829.64726255,0.000249,2]
[388931736,1759516246241,-177.912492,0.00024347,7]
[388931737,1759516246250,-681.463387,0.00024347,7]
[388931738,1759516246259,-177.912492,0.00024347,7]
[388931739,1759516246268,-681.463387,0.00024347,7]
[388931740,1759516246277,-177.912492,0.00024347,7]
[388931741,1759516246287,-681.463387,0.00024347,7]
[388931742,1759516246296,-177.912492,0.00024347,7]
[388931743,1759516246305,-681.463387,0.00024347,7]
[388931744,1759516246314,-5000.0,0.00024651,2]
[388931745,1759516246323,-7.49648436,0.00024657,2]
[388931825,1759517430775,1099.76,0.00028767,120]
[388931840,1759517432447,-1938.59620376,0.00021481,2]
[388931841,1759517432500,-1068.63348662,0.00021481,2]
[388931842,1759517432554,-300.98027823,0.00021481,2]
[388931843,1759517432564,-367.48847173,0.00021676,2]
[388931959,1759517438407,-209.52894201,0.00021676,2]
[388931960,1759517438417,-5000.0,0.00021895,2]
[388931961,1759517438427,-160.0,0.00023454,2]
[388931962,1759517438436,-234.04758945,0.00023454,2]
[388931963,1759517438446,-519.0,0.00023851,2]
[388931964,1759517438456,-666.0,0.00023853,2]
[388931965,1759517438466,-710.4050005,0.00023974,2]
[388931966,1759517438475,-263.261875,0.00023982,2]
[388931967,1759517438484,-3216.5103372,0.00024018,2]
[388931968,1759517438494,-1000.0,0.00024028,2]
[388931969,1759517438504,-293.47406221,0.00024096,2]
[388931970,1759517438513,-1041.66666667,0.00024122,2]
[388931971,1759517438523,-307.4222994,0.00024658,2]
[388931972,1759517438532,-503.8024159,0.00024873,2]
[388931973,1759517438542,-500.0,0.00024873,2]
[388931974,1759517438552,-588.84541182,0.00024873,2]
[388931975,1759517438561,-500.0,0.00024873,2]
[388931976,1759517438571,-500.0,0.00024873,2]
[388931977,1759517438580,-4607.6609529,0.00024873,2]
[388931978,1759517438590,-155.0,0.00024899,2]
[388931979,1759517438599,-151.0,0.000249,7]
[388931980,1759517438609,-198.0,0.000249,7]
[388931981,1759517438619,-151.0,0.000249,7]
[388931982,1759517438628,-151.0,0.000249,7]
[388931983,1759517438638,-151.0,0.00025174,7]
[388931984,1759517438648,-151.0,0.00025174,7]
[388931985,1759517438658,-151.0,0.00025174,7]
[388931986,1759517438668,-151.0,0.00025174,7]
[388931987,1759517438677,-151.0,0.00025174,7]
[388931988,1759517438687,-300.0,0.00025183,20]
[388931989,1759517438696,-300.0,0.00025183,20]
[388931990,1759517438706,-300.0,0.00025183,20]
[388931991,1759517438716,-300.0,0.00025183,20]
[388931992,1759517438726,-300.0,0.00025183,20]
[388931993,1759517438736,-300.0,0.00025183,20]
[388931994,1759517438746,-300.0,0.00025183,20]
[388931995,1759517438755,-300.0,0.00025183,20]
[388931996,1759517438765,-300.0,0.00025183,20]
[388931997,1759517438775,-300.0,0.00025183,20]
[388931998,1759517438785,-300.0,0.00025183,20]
[388931999,1759517438794,-300.0,0.00025183,20]
[388932000,1759517438804,-300.0,0.00025183,20]
[388932001,1759517438814,-197.83646458,0.00025183,20]
[388932002,1759517438826,-102.16353542,0.00025183,20]
[388932003,1759517438835,-300.0,0.00025183,20]
[388932004,1759517438845,-500.0,0.00025183,2]
[388932005,1759517438854,-151.0,0.00025183,20]
[388932006,1759517438864,-292.0,0.00025183,20]
[388932007,1759517438874,-292.35119698,0.00025183,20]
[388932008,1759517438884,-245.0,0.00025183,20]
[388932009,1759517438894,-500.0,0.00025183,20]
[388932010,1759517438903,-151.0,0.00025183,14]
[388932011,1759517438913,-151.0,0.00025183,20]
[388932012,1759517438923,-227.92,0.00025348,7]
[388932013,1759517438933,-600.0,0.00025397,20]
[388932014,1759517438942,-198.0,0.00025448,7]
[388932015,1759517438952,-151.0,0.00025448,7]
[388932016,1759517438962,-500.0,0.00025457,2]
[388932017,1759517438971,-500.0,0.00025457,20]
[388932018,1759517438981,-151.0,0.00025722,7]
[388932019,1759517438990,-500.0,0.00025731,2]
[388932020,1759517439000,-500.0,0.00025731,20]
[388932021,1759517439009,-500.0,0.00025797,2]
[388932022,1759517439018,-500.0,0.00025797,2]
[388932023,1759517439029,-193.19517155,0.00025797,2]
[388932024,1759517439038,-151.0,0.00025996,7]
[388932025,1759517439048,-1523.15792939,0.00026,10]
[388932026,1759517439057,-1673.26154325,0.00026,30]
[388932027,1759517439067,-500.0,0.00026005,2]
[388932028,1759517439077,-500.0,0.00026005,20]
[388932029,1759517439086,-151.0,0.0002627,7]
[388932030,1759517439097,-500.0,0.00026279,2]
[388932031,1759517439107,-500.0,0.00026279,20]
[388932032,1759517439117,-200.0,0.0002654,14]
[388932033,1759517439127,-245.0,0.00026544,7]
[388932034,1759517439138,-500.0,0.00026553,2]
[388932035,1759517439148,-500.0,0.00026553,20]
[388932036,1759517439157,-500.0,0.00026827,2]
[388932037,1759517439168,-100.5707586,0.00026827,20]
[388932038,1759517439208,-399.4292414,0.00026827,20]
[388932039,1759517439219,-273.429,0.00027053,15]
[388932040,1759517439228,-500.0,0.00027101,2]
[388932041,1759517439238,-500.0,0.00027101,20]
[388932042,1759517439247,-2100.0,0.00027329,2]
[388932043,1759517439262,-208.57923993,0.00027375,2]
[388932044,1759517439272,-33.09208092,0.00027375,20]
[388932045,1759517439283,-176.01123706,0.00027375,20]
[388932046,1759517439295,-636.41441948,0.00027937,30]
[388932061,1759517440408,-83.58558052,0.00027937,30]
[388932062,1759517440419,-182.19,0.0002849,2]
[388932063,1759517440428,-1437.96156956,0.000285,7]
[388932064,1759517440439,-2649.60341124,0.000285,7]
[388932065,1759517440447,-500.0,0.00028514,7]
[388932066,1759517440457,-168.0,0.00028529,2]
[388932067,1759517440466,-168.0,0.0002877,2]
[388932068,1759517440475,-55477.834075,0.0002888,2]
[388932160,1759517446594,-428.711,0.00026792,2]
[388932161,1759517446603,-728.7889995,0.0002888,2]
[388932181,1759517662135,160.0,0.00013699,2]
[388932182,1759517662443,260.0,0.00014247,2]
[388932183,1759517662764,360.0,0.00014795,2]
[388932184,1759517663079,460.0,0.00015342,2]
[388932185,1759517663843,280.0,0.0001589,2]
[388932187,1759517670174,154.0,0.00024,120]
[388932189,1759517671572,154.0,0.00026,120]
[388932190,1759517673113,154.0,0.000281,120]
[388932191,1759517674112,2040.83047316,0.00024698,30]
[388932207,1759518176295,192.49,0.00018033,2]
[388932244,1759518632653,-605.57180953,0.00024145,2]
[388932245,1759518632667,-4394.42819047,0.00024145,2]
[388932246,1759518632677,-160.0,0.0002462,2]
[388932248,1759518632687,-160.0,0.0002462,2]
[388932250,1759518632696,-160.0,0.00024855,2]
[388932251,1759518632705,-160.0,0.0002486,2]
[388932252,1759518632716,-234.04758945,0.0002486,2]
[388932253,1759518632727,-1041.66666667,0.00024881,2]
[388932254,1759518632738,-606.0,0.00024885,2]
[388932258,1759518632747,-300.0,0.00025451,20]
[388932262,1759518632757,-300.0,0.00025451,20]
[388932266,1759518632767,-300.0,0.00025451,20]
[388932271,1759518632779,-300.0,0.00025451,20]
[388932275,1759518632790,-300.0,0.00025451,20]
[388932279,1759518632800,-300.0,0.00025451,20]
[388932282,1759518632810,-300.0,0.00025451,20]
[388932285,1759518632819,-300.0,0.00025451,20]
[388932288,1759518632828,-300.0,0.00025451,20]
[388932291,1759518632838,-300.0,0.00025451,20]
[388932294,1759518632848,-300.0,0.00025451,20]
[388932296,1759518632858,-300.0,0.00025451,20]
[388932298,1759518632867,-300.0,0.00025451,20]
[388932300,1759518632878,-300.0,0.00025451,20]
[388932302,1759518632887,-300.0,0.00025451,20]
[388932304,1759518632896,-410.0,0.00027088,2]
[388932306,1759518632908,-600.0,0.00027385,30]
[388932308,1759518632917,-168.0,0.00027496,2]
[388932310,1759518632926,-612.01136946,0.00027913,2]
[388932312,1759518632936,-71348.51999242,0.0002799,2]
[388932314,1759518632945,-111062.19452407,0.0002799,2]
[388932412,1759518638447,-303.41361538,0.0002771,2]
[388932413,1759518638457,-1466.38,0.0002798,10]
[388932414,1759518638467,-13010.88954893,0.0002799,2]
[388932415,1759518638477,-37049.95852988,0.00028,2]
[388932416,1759518638487,-151.0,0.00028,7]
[388932417,1759518638496,-151.0,0.00028,7]
[388932418,1759518638505,-151.0,0.00028,7]
[388932419,1759518638515,-151.0,0.00028,7]
[388932420,1759518638525,-545.17071,0.00028,7]
[388932421,1759518638534,-545.17071,0.00028,7]
[388932422,1759518638543,-545.17071,0.00028,7]
[388932423,1759518638553,-545.17071,0.00028,7]
[388932424,1759518638562,-229.639204,0.00028,7]
[388932425,1759518638571,-229.639204,0.00028,7]
[388932427,1759518638581,-229.639204,0.00028,7]
[388932429,1759518638593,-229.639204,0.00028,7]
[388932430,1759518638603,-151.0,0.00028,7]